[Event "January 9 Early 2024"]
[Site "https://www.chess.com"]
[Date "2024.01.11"]
[Round "5"]
[White "Mohammadi, Melika"]
[Black "Kostiukov, Alexandr"]
[Result "1-0"]
[Board "245"]
[TimeControl "180+1"]
[WhiteFideId "42529271"]
[BlackFideId "14108100"]
[WhiteElo "2458"]
[BlackElo "2297"]
[WhiteTeam "IRI"]
[BlackTeam "UKR"]
[WhiteClock "0:00:05"]
[BlackClock "0:00:11"]

1. e4 {[%clk 0:03:00]}  c5 {[%clk 0:02:58]} 2. Nf3 {[%clk 0:03:00]}  g6 {[%clk 0:02:55]} 3. d4 {[%clk 0:03:00]}  cxd4 {[%clk 0:02:56]} 4. Nxd4 {[%clk 0:03:01]}  Bg7 {[%clk 0:02:56]} 5. c4 {[%clk 0:03:01]}  Nc6 {[%clk 0:02:56]} 6. Be3 {[%clk 0:03:01]}  Nf6 {[%clk 0:02:56]} 7. Nc3 {[%clk 0:03:00]}  O-O {[%clk 0:02:56]} 8. Be2 {[%clk 0:02:57]}  Nxd4 {[%clk 0:02:57]} 9. Bxd4 {[%clk 0:02:57]}  Qa5 {[%clk 0:02:57]} 10. O-O {[%clk 0:02:56]}  d6 {[%clk 0:02:58]} 11. Qc2 {[%clk 0:02:48]}  Be6 {[%clk 0:02:52]} 12. Rad1 {[%clk 0:02:42]}  Rfc8 {[%clk 0:02:51]} 13. b3 {[%clk 0:02:42]}  a6 {[%clk 0:02:51]} 14. Qb2 {[%clk 0:02:41]}  b5 {[%clk 0:02:41]} 15. cxb5 {[%clk 0:02:23]}  axb5 {[%clk 0:02:40]} 16. b4 {[%clk 0:01:55]}  Qa3 {[%clk 0:02:33]} 17. Qxa3 {[%clk 0:01:20]}  Rxa3 {[%clk 0:02:32]} 18. Rc1 {[%clk 0:01:10]}  Nxe4 {[%clk 0:01:51]} 19. Nxb5 {[%clk 0:01:08]}  Rxc1 {[%clk 0:01:40]} 20. Rxc1 {[%clk 0:01:06]}  Rxa2 {[%clk 0:01:39]} 21. Bf3 {[%clk 0:01:04]}  Bxd4 {[%clk 0:01:35]} 22. Nxd4 {[%clk 0:01:02]}  Nxf2 {[%clk 0:01:25]} 23. Nxe6 {[%clk 0:00:56]}  fxe6 {[%clk 0:01:25]} 24. b5 {[%clk 0:00:48]}  Nd3 {[%clk 0:01:18]} 25. Rb1 {[%clk 0:00:48]}  d5 {[%clk 0:00:54]} 26. b6 {[%clk 0:00:39]}  Ra8 {[%clk 0:00:53]} 27. Bg4 {[%clk 0:00:31]}  Kf7 {[%clk 0:00:48]} 28. Rf1+ {[%clk 0:00:29]}  Kg7 {[%clk 0:00:36]} 29. Bxe6 {[%clk 0:00:28]}  Rb8 {[%clk 0:00:31]} 30. Rb1 {[%clk 0:00:15]}  Nf4 {[%clk 0:00:23]} 31. Bd7 {[%clk 0:00:12]}  e5 {[%clk 0:00:20]} 32. b7 {[%clk 0:00:10]}  Nd3 {[%clk 0:00:19]} 33. Bc6 {[%clk 0:00:09]}  d4 {[%clk 0:00:18]} 34. Ra1 {[%clk 0:00:02]}  Nc5 {[%clk 0:00:16]} 35. Ra8 {[%clk 0:00:02]}  Nxb7 {[%clk 0:00:11]} 36. Rxb8 {[%clk 0:00:02]}  Nd6 {[%clk 0:00:11]} 37. Rd8 {[%clk 0:00:02]}  Nf5 {[%clk 0:00:12]} 38. Rd7+ {[%clk 0:00:02]}  Kf6 {[%clk 0:00:13]} 39. Kf2 {[%clk 0:00:02]}  h5 {[%clk 0:00:13]} 40. g3 {[%clk 0:00:02]}  Ne3 {[%clk 0:00:12]} 41. Ke2 {[%clk 0:00:02]}  Ng4 {[%clk 0:00:13]} 42. h3 {[%clk 0:00:03]}  Nh6 {[%clk 0:00:13]} 43. Kd3 {[%clk 0:00:03]}  Nf5 {[%clk 0:00:12]} 44. g4 {[%clk 0:00:04]}  hxg4 {[%clk 0:00:13]} 45. hxg4 {[%clk 0:00:04]}  Ne3 {[%clk 0:00:14]} 46. Bf3 {[%clk 0:00:04]}  Nf1 {[%clk 0:00:11]} 47. Rd6+ {[%clk 0:00:03]}  Kg5 {[%clk 0:00:10]} 48. Be4 {[%clk 0:00:04]}  Kf4 {[%clk 0:00:09]} 49. Rf6+ {[%clk 0:00:04]}  Kxg4 {[%clk 0:00:09]} 50. Rxf1 {[%clk 0:00:05]}  g5 {[%clk 0:00:09]} 51. Rg1+ {[%clk 0:00:05]}  Kf4 {[%clk 0:00:10]} 52. Rf1+ {[%clk 0:00:05]}  Kg3 {[%clk 0:00:10]} 53. Rf5 {[%clk 0:00:05]}  g4 {[%clk 0:00:11]} 54. Rxe5 {[%clk 0:00:05]} 1-0

[Event "January 9 Early 2024"]
[Site "https://www.chess.com"]
[Date "2024.01.11"]
[Round "5"]
[White "Sturt, Raven"]
[Black "Navara, David"]
[Result "1/2-1/2"]
[Board "247"]
[TimeControl "180+1"]
[WhiteFideId "2007304"]
[BlackFideId "309095"]
[WhiteElo "2763"]
[BlackElo "2996"]
[WhiteTeam "USA"]
[BlackTeam "CZE"]
[WhiteClock "0:00:03"]
[BlackClock "0:00:05"]

1. f4 {[%clk 0:03:00]}  Nh6 {[%clk 0:02:58]} 2. Nf3 {[%clk 0:03:00]}  d5 {[%clk 0:02:57]} 3. d3 {[%clk 0:03:01]}  c5 {[%clk 0:02:50]} 4. Qd2 {[%clk 0:02:55]}  d4 {[%clk 0:02:44]} 5. c3 {[%clk 0:02:55]}  Nf5 {[%clk 0:02:38]} 6. cxd4 {[%clk 0:02:54]}  cxd4 {[%clk 0:02:39]} 7. Na3 {[%clk 0:02:50]}  Nc6 {[%clk 0:02:33]} 8. Nc2 {[%clk 0:02:50]}  h5 {[%clk 0:02:31]} 9. b4 {[%clk 0:02:48]}  a6 {[%clk 0:01:54]} 10. Bb2 {[%clk 0:02:46]}  g6 {[%clk 0:01:51]} 11. a4 {[%clk 0:02:15]}  e5 {[%clk 0:01:25]} 12. b5 {[%clk 0:02:07]}  axb5 {[%clk 0:01:26]} 13. axb5 {[%clk 0:02:07]}  Rxa1+ {[%clk 0:01:27]} 14. Bxa1 {[%clk 0:02:08]}  Na5 {[%clk 0:01:27]} 15. Nxe5 {[%clk 0:01:55]}  Nb3 {[%clk 0:01:27]} 16. Qd1 {[%clk 0:01:55]}  Qa5+ {[%clk 0:01:22]} 17. Kf2 {[%clk 0:01:55]}  Ne3 {[%clk 0:01:21]} 18. Qb1 {[%clk 0:01:26]}  Nxa1 {[%clk 0:00:32]} 19. Qxa1 {[%clk 0:01:09]}  Qxa1 {[%clk 0:00:32]} 20. Nxa1 {[%clk 0:01:09]}  Bc5 {[%clk 0:00:25]} 21. Nb3 {[%clk 0:01:09]}  Ba7 {[%clk 0:00:20]} 22. g3 {[%clk 0:01:07]}  h4 {[%clk 0:00:11]} 23. Bg2 {[%clk 0:01:01]}  Nxg2 {[%clk 0:00:11]} 24. Kxg2 {[%clk 0:01:01]}  Be6 {[%clk 0:00:12]} 25. Ra1 {[%clk 0:00:45]}  Bd5+ {[%clk 0:00:10]} 26. Kf2 {[%clk 0:00:44]}  hxg3+ {[%clk 0:00:09]} 27. Kxg3 {[%clk 0:00:43]}  Bb8 {[%clk 0:00:08]} 28. Ra8 {[%clk 0:00:41]}  O-O {[%clk 0:00:07]} 29. Nxd4 {[%clk 0:00:30]}  g5 {[%clk 0:00:08]} 30. Nf5 {[%clk 0:00:22]}  gxf4+ {[%clk 0:00:08]} 31. Kf2 {[%clk 0:00:19]}  Be6 {[%clk 0:00:03]} 32. Nh6+ {[%clk 0:00:13]}  Kg7 {[%clk 0:00:03]} 33. Nhg4 {[%clk 0:00:13]}  f5 {[%clk 0:00:02]} 34. Rxb8 {[%clk 0:00:10]}  Rxb8 {[%clk 0:00:03]} 35. h3 {[%clk 0:00:06]}  fxg4 {[%clk 0:00:03]} 36. hxg4 {[%clk 0:00:07]}  Kf6 {[%clk 0:00:04]} 37. d4 {[%clk 0:00:08]}  Bd5 {[%clk 0:00:03]} 38. Nd7+ {[%clk 0:00:08]}  Kg5 {[%clk 0:00:04]} 39. Nxb8 {[%clk 0:00:09]}  Kxg4 {[%clk 0:00:04]} 40. Nd7 {[%clk 0:00:08]}  Kf5 {[%clk 0:00:05]} 41. Nc5 {[%clk 0:00:05]}  b6 {[%clk 0:00:04]} 42. Nd3 {[%clk 0:00:04]}  Bc4 {[%clk 0:00:04]} 43. Kf3 {[%clk 0:00:03]}  Bxb5 {[%clk 0:00:04]} 44. Nxf4 {[%clk 0:00:03]}  Bc6+ {[%clk 0:00:03]} 45. Ke3 {[%clk 0:00:04]}  b5 {[%clk 0:00:03]} 46. d5 {[%clk 0:00:04]}  Bb7 {[%clk 0:00:03]} 47. Kf3 {[%clk 0:00:04]}  Ke5 {[%clk 0:00:03]} 48. e4 {[%clk 0:00:04]}  Kd4 {[%clk 0:00:01]} 49. Ne6+ {[%clk 0:00:04]}  Ke5 {[%clk 0:00:02]} 50. Nc7 {[%clk 0:00:03]}  b4 {[%clk 0:00:01]} 51. Ke3 {[%clk 0:00:03]}  b3 {[%clk 0:00:02]} 52. Kd3 {[%clk 0:00:03]}  b2 {[%clk 0:00:02]} 53. Kc2 {[%clk 0:00:04]}  Kxe4 {[%clk 0:00:03]} 54. d6 {[%clk 0:00:04]}  Bc6 {[%clk 0:00:03]} 55. Kxb2 {[%clk 0:00:03]}  Ke5 {[%clk 0:00:04]} 56. Nb5 {[%clk 0:00:03]}  Bxb5 {[%clk 0:00:04]} 57. d7 {[%clk 0:00:03]}  Bxd7 {[%clk 0:00:05]} 1/2-1/2

[Event "January 9 Early 2024"]
[Site "https://www.chess.com"]
[Date "2024.01.11"]
[Round "5"]
[White "Llari, Marc"]
[Black "Iljin, Timofey"]
[Result "0-1"]
[Board "248"]
[TimeControl "180+1"]
[WhiteFideId "651044269"]
[BlackFideId "14110180"]
[WhiteElo "2312"]
[BlackElo "2542"]
[WhiteTeam "FRA"]
[BlackTeam "UKR"]
[WhiteClock "0:00:03"]
[BlackClock "0:00:05"]

1. d4 {[%clk 0:03:00]}  f5 {[%clk 0:02:59]} 2. Nf3 {[%clk 0:02:58]}  Nf6 {[%clk 0:02:59]} 3. g3 {[%clk 0:02:58]}  g6 {[%clk 0:03:00]} 4. Bg2 {[%clk 0:02:59]}  Bg7 {[%clk 0:03:01]} 5. O-O {[%clk 0:02:59]}  O-O {[%clk 0:03:02]} 6. c4 {[%clk 0:02:59]}  d6 {[%clk 0:03:02]} 7. Nc3 {[%clk 0:03:00]}  Qe8 {[%clk 0:03:02]} 8. d5 {[%clk 0:02:58]}  Na6 {[%clk 0:02:58]} 9. Nd4 {[%clk 0:02:54]}  Bd7 {[%clk 0:02:54]} 10. a3 {[%clk 0:02:18]}  Nc5 {[%clk 0:02:46]} 11. b4 {[%clk 0:02:13]}  Nce4 {[%clk 0:02:24]} 12. Nxe4 {[%clk 0:02:11]}  Nxe4 {[%clk 0:02:20]} 13. Bb2 {[%clk 0:02:05]}  c5 {[%clk 0:02:17]} 14. dxc6 {[%clk 0:02:04]}  bxc6 {[%clk 0:02:17]} 15. Qc2 {[%clk 0:02:03]}  e5 {[%clk 0:02:01]} 16. Nb3 {[%clk 0:01:56]}  Qf7 {[%clk 0:01:57]} 17. Bxe4 {[%clk 0:01:48]}  fxe4 {[%clk 0:01:57]} 18. Qxe4 {[%clk 0:01:46]}  Bh3 {[%clk 0:01:36]} 19. Qxc6 {[%clk 0:00:52]}  Bxf1 {[%clk 0:01:36]} 20. Rxf1 {[%clk 0:00:52]}  Rac8 {[%clk 0:01:27]} 21. Qxd6 {[%clk 0:00:50]}  Qxc4 {[%clk 0:01:27]} 22. Nc5 {[%clk 0:00:49]}  Qxe2 {[%clk 0:01:27]} 23. Ne6 {[%clk 0:00:32]}  Qxb2 {[%clk 0:01:02]} 24. Qd7 {[%clk 0:00:31]}  e4 {[%clk 0:00:37]} 25. Nxf8 {[%clk 0:00:24]}  Rxf8 {[%clk 0:00:37]} 26. Qxa7 {[%clk 0:00:21]}  Bd4 {[%clk 0:00:28]} 27. Qb7 {[%clk 0:00:19]}  e3 {[%clk 0:00:13]} 28. Qd5+ {[%clk 0:00:16]}  Kh8 {[%clk 0:00:13]} 29. Qd6 {[%clk 0:00:06]}  exf2+ {[%clk 0:00:08]} 30. Kg2 {[%clk 0:00:06]}  Bg7 {[%clk 0:00:07]} 31. Qd3 {[%clk 0:00:05]}  Qf6 {[%clk 0:00:04]} 32. Qe3 {[%clk 0:00:04]}  Qc6+ {[%clk 0:00:05]} 33. Kh3 {[%clk 0:00:04]}  Qc8+ {[%clk 0:00:03]} 34. Kg2 {[%clk 0:00:04]}  Qa8+ {[%clk 0:00:04]} 35. Kh3 {[%clk 0:00:05]}  Qf3 {[%clk 0:00:02]} 36. Qxf3 {[%clk 0:00:04]}  Rxf3 {[%clk 0:00:03]} 37. a4 {[%clk 0:00:03]}  Bd4 {[%clk 0:00:03]} 38. b5 {[%clk 0:00:02]}  Ra3 {[%clk 0:00:03]} 39. Rb1 {[%clk 0:00:01]}  Rxa4 {[%clk 0:00:02]} 40. Kg2 {[%clk 0:00:02]}  Ra7 {[%clk 0:00:01]} 41. b6 {[%clk 0:00:02]}  Rb7 {[%clk 0:00:02]} 42. Kf1 {[%clk 0:00:03]}  Rxb6 {[%clk 0:00:03]} 43. Rd1 {[%clk 0:00:03]}  Bf6 {[%clk 0:00:02]} 44. Kxf2 {[%clk 0:00:03]}  Ra6 {[%clk 0:00:02]} 45. Kg1 {[%clk 0:00:03]}  Kg7 {[%clk 0:00:02]} 46. Rf1 {[%clk 0:00:04]}  Be5 {[%clk 0:00:02]} 47. Kg2 {[%clk 0:00:04]}  Ra2+ {[%clk 0:00:02]} 48. Kh3 {[%clk 0:00:04]}  Ra5 {[%clk 0:00:03]} 49. Re1 {[%clk 0:00:04]}  h5 {[%clk 0:00:03]} 50. Rf1 {[%clk 0:00:05]}  Kh6 {[%clk 0:00:03]} 51. Rf2 {[%clk 0:00:03]}  g5 {[%clk 0:00:04]} 52. Kg2 {[%clk 0:00:04]}  Rb5 {[%clk 0:00:04]} 53. Rc2 {[%clk 0:00:04]}  Rb2 {[%clk 0:00:04]} 54. Rxb2 {[%clk 0:00:03]}  Bxb2 {[%clk 0:00:05]} 0-1

[Event "January 9 Early 2024"]
[Site "https://www.chess.com"]
[Date "2024.01.11"]
[Round "5"]
[White "Martinez Alcantara, Jose Eduardo"]
[Black "Liascovich, Lucas"]
[Result "1/2-1/2"]
[Board "251"]
[TimeControl "180+1"]
[WhiteFideId "3805662"]
[BlackFideId "108634"]
[WhiteElo "3033"]
[BlackElo "2910"]
[WhiteTeam "PER"]
[BlackTeam "ARG"]
[WhiteClock "0:00:06"]
[BlackClock "0:00:19"]

1. e4 {[%clk 0:03:00]}  e5 {[%clk 0:02:52]} 2. Nf3 {[%clk 0:03:00]}  Nf6 {[%clk 0:02:52]} 3. Nc3 {[%clk 0:03:01]}  Nc6 {[%clk 0:02:51]} 4. h3 {[%clk 0:03:02]}  d6 {[%clk 0:02:51]} 5. d4 {[%clk 0:03:01]}  Be7 {[%clk 0:02:47]} 6. Bb5 {[%clk 0:02:56]}  Bd7 {[%clk 0:02:47]} 7. Bxc6 {[%clk 0:02:56]}  Bxc6 {[%clk 0:02:46]} 8. Qd3 {[%clk 0:02:51]}  exd4 {[%clk 0:02:40]} 9. Nxd4 {[%clk 0:02:51]}  Bd7 {[%clk 0:02:40]} 10. Bf4 {[%clk 0:02:46]}  O-O {[%clk 0:02:41]} 11. O-O-O {[%clk 0:02:47]}  Re8 {[%clk 0:02:34]} 12. g4 {[%clk 0:02:46]}  Bf8 {[%clk 0:02:34]} 13. f3 {[%clk 0:02:41]}  Be6 {[%clk 0:02:21]} 14. Nf5 {[%clk 0:02:21]}  Bxf5 {[%clk 0:02:20]} 15. gxf5 {[%clk 0:02:20]}  g6 {[%clk 0:02:20]} 16. h4 {[%clk 0:02:15]}  Nh5 {[%clk 0:02:18]} 17. Bg5 {[%clk 0:02:12]}  Be7 {[%clk 0:02:17]} 18. Kb1 {[%clk 0:01:57]}  Bxg5 {[%clk 0:02:02]} 19. hxg5 {[%clk 0:01:58]}  Re5 {[%clk 0:01:54]} 20. Qd2 {[%clk 0:01:44]}  b5 {[%clk 0:01:47]} 21. f4 {[%clk 0:01:23]}  Rc5 {[%clk 0:01:48]} 22. fxg6 {[%clk 0:01:22]}  hxg6 {[%clk 0:01:46]} 23. f5 {[%clk 0:01:18]}  Qe7 {[%clk 0:01:41]} 24. fxg6 {[%clk 0:00:54]}  fxg6 {[%clk 0:01:38]} 25. Nd5 {[%clk 0:00:55]}  Qe5 {[%clk 0:01:38]} 26. Rdf1 {[%clk 0:00:50]}  Rf8 {[%clk 0:01:36]} 27. Rxf8+ {[%clk 0:00:45]}  Kxf8 {[%clk 0:01:36]} 28. Rf1+ {[%clk 0:00:46]}  Ke8 {[%clk 0:01:29]} 29. Qf2 {[%clk 0:00:46]}  Kd7 {[%clk 0:01:21]} 30. Qf8 {[%clk 0:00:32]}  Qe8 {[%clk 0:00:36]} 31. Qf3 {[%clk 0:00:31]}  Kc6 {[%clk 0:00:34]} 32. b3 {[%clk 0:00:29]}  Kb7 {[%clk 0:00:32]} 33. Qd3 {[%clk 0:00:27]}  Qe5 {[%clk 0:00:30]} 34. Rf7 {[%clk 0:00:27]}  a6 {[%clk 0:00:29]} 35. a4 {[%clk 0:00:25]}  Ng3 {[%clk 0:00:26]} 36. Re7 {[%clk 0:00:24]}  Qxg5 {[%clk 0:00:24]} 37. b4 {[%clk 0:00:20]}  Rxd5 {[%clk 0:00:22]} 38. Qxd5+ {[%clk 0:00:19]}  Qxd5 {[%clk 0:00:23]} 39. exd5 {[%clk 0:00:20]}  bxa4 {[%clk 0:00:20]} 40. Rg7 {[%clk 0:00:20]}  Nf5 {[%clk 0:00:20]} 41. Rxg6 {[%clk 0:00:19]}  Ne3 {[%clk 0:00:21]} 42. Rg5 {[%clk 0:00:19]}  Nc4 {[%clk 0:00:21]} 43. Rg4 {[%clk 0:00:15]}  Ne3 {[%clk 0:00:18]} 44. Rd4 {[%clk 0:00:15]}  Kb6 {[%clk 0:00:18]} 45. c4 {[%clk 0:00:12]}  a5 {[%clk 0:00:18]} 46. Re4 {[%clk 0:00:10]}  Nf5 {[%clk 0:00:16]} 47. bxa5+ {[%clk 0:00:10]}  Kxa5 {[%clk 0:00:16]} 48. Kc2 {[%clk 0:00:09]}  Kb4 {[%clk 0:00:17]} 49. Rf4 {[%clk 0:00:07]}  Ne3+ {[%clk 0:00:16]} 50. Kd3 {[%clk 0:00:07]}  Nd1 {[%clk 0:00:16]} 51. Kc2 {[%clk 0:00:07]}  Ne3+ {[%clk 0:00:17]} 52. Kd3 {[%clk 0:00:07]}  Nd1 {[%clk 0:00:17]} 53. Rf8 {[%clk 0:00:08]}  Nb2+ {[%clk 0:00:17]} 54. Kd4 {[%clk 0:00:08]}  Nxc4 {[%clk 0:00:17]} 55. Rc8 {[%clk 0:00:08]}  Na3 {[%clk 0:00:17]} 56. Rb8+ {[%clk 0:00:07]}  Nb5+ {[%clk 0:00:18]} 57. Kd3 {[%clk 0:00:08]}  a3 {[%clk 0:00:18]} 58. Kc2 {[%clk 0:00:08]}  Kc4 {[%clk 0:00:19]} 59. Rb7 {[%clk 0:00:06]} 1/2-1/2

[Event "January 9 Early 2024"]
[Site "https://www.chess.com"]
[Date "2024.01.11"]
[Round "5"]
[White "Avramidou, Anastasia"]
[Black "Khouri, Ahmed Abbas"]
[Result "0-1"]
[Board "252"]
[TimeControl "180+1"]
[WhiteFideId "4239873"]
[BlackFideId "9301518"]
[WhiteElo "2518"]
[BlackElo "2282"]
[WhiteTeam "GRE"]
[BlackTeam "UAE"]
[WhiteClock "0:00:05"]
[BlackClock "0:00:12"]

1. c4 {[%clk 0:03:00]}  c5 {[%clk 0:02:59]} 2. Nc3 {[%clk 0:02:59]}  Nc6 {[%clk 0:02:59]} 3. Nf3 {[%clk 0:02:59]}  e5 {[%clk 0:02:59]} 4. g3 {[%clk 0:02:57]}  g6 {[%clk 0:03:00]} 5. Bg2 {[%clk 0:02:58]}  Bg7 {[%clk 0:03:01]} 6. O-O {[%clk 0:02:58]}  Nge7 {[%clk 0:03:01]} 7. d3 {[%clk 0:02:58]}  O-O {[%clk 0:03:01]} 8. Rb1 {[%clk 0:02:58]}  d6 {[%clk 0:02:59]} 9. a3 {[%clk 0:02:58]}  a5 {[%clk 0:02:55]} 10. Ne1 {[%clk 0:02:58]}  Be6 {[%clk 0:02:54]} 11. Nc2 {[%clk 0:02:56]}  d5 {[%clk 0:02:54]} 12. cxd5 {[%clk 0:02:55]}  Nxd5 {[%clk 0:02:55]} 13. Ne3 {[%clk 0:02:52]}  Nc7 {[%clk 0:02:53]} 14. Ne4 {[%clk 0:02:48]}  Na6 {[%clk 0:02:45]} 15. Nc2 {[%clk 0:02:39]}  h6 {[%clk 0:02:41]} 16. Be3 {[%clk 0:02:28]}  Qe7 {[%clk 0:02:09]} 17. Qd2 {[%clk 0:01:46]}  f5 {[%clk 0:01:54]} 18. Nc3 {[%clk 0:01:46]}  Kh7 {[%clk 0:01:53]} 19. Rbc1 {[%clk 0:01:32]}  Rad8 {[%clk 0:01:46]} 20. Na4 {[%clk 0:01:08]}  c4 {[%clk 0:01:03]} 21. Bb6 {[%clk 0:00:40]}  Rd7 {[%clk 0:00:49]} 22. Bxc6 {[%clk 0:00:41]}  bxc6 {[%clk 0:00:50]} 23. Qxa5 {[%clk 0:00:41]}  cxd3 {[%clk 0:00:38]} 24. exd3 {[%clk 0:00:41]}  Nc7 {[%clk 0:00:17]} 25. Nc5 {[%clk 0:00:34]}  Nd5 {[%clk 0:00:13]} 26. Nxd7 {[%clk 0:00:27]}  Qxd7 {[%clk 0:00:12]} 27. Qa7 {[%clk 0:00:23]}  Qe8 {[%clk 0:00:10]} 28. Be3 {[%clk 0:00:19]}  f4 {[%clk 0:00:10]} 29. Bd2 {[%clk 0:00:19]}  Qd8 {[%clk 0:00:08]} 30. h4 {[%clk 0:00:11]}  Qf6 {[%clk 0:00:08]} 31. Bb4 {[%clk 0:00:07]}  Qf5 {[%clk 0:00:08]} 32. Be7 {[%clk 0:00:06]}  Rf7 {[%clk 0:00:07]} 33. Qc5 {[%clk 0:00:05]}  Qh3 {[%clk 0:00:05]} 34. Ne1 {[%clk 0:00:02]}  Rxe7 {[%clk 0:00:04]} 35. Ng2 {[%clk 0:00:02]}  fxg3 {[%clk 0:00:04]} 36. fxg3 {[%clk 0:00:02]}  Qxg3 {[%clk 0:00:05]} 37. Qf2 {[%clk 0:00:02]}  Qg4 {[%clk 0:00:05]} 38. Rce1 {[%clk 0:00:02]}  Rf7 {[%clk 0:00:05]} 39. Qe2 {[%clk 0:00:02]}  Qh3 {[%clk 0:00:06]} 40. Rxf7 {[%clk 0:00:02]}  Bxf7 {[%clk 0:00:06]} 41. Rf1 {[%clk 0:00:02]}  Nf4 {[%clk 0:00:06]} 42. Nxf4 {[%clk 0:00:02]}  exf4 {[%clk 0:00:07]} 43. Qg2 {[%clk 0:00:02]}  Qxh4 {[%clk 0:00:08]} 44. Rf3 {[%clk 0:00:01]}  Bd4+ {[%clk 0:00:08]} 45. Kf1 {[%clk 0:00:02]}  Bd5 {[%clk 0:00:08]} 46. Ke2 {[%clk 0:00:02]}  Bxf3+ {[%clk 0:00:08]} 47. Qxf3 {[%clk 0:00:03]}  Qh2+ {[%clk 0:00:08]} 48. Kd1 {[%clk 0:00:03]}  Be3 {[%clk 0:00:09]} 49. Qe2 {[%clk 0:00:02]}  Qxe2+ {[%clk 0:00:09]} 50. Kxe2 {[%clk 0:00:03]}  h5 {[%clk 0:00:10]} 51. b4 {[%clk 0:00:03]}  h4 {[%clk 0:00:11]} 52. a4 {[%clk 0:00:04]}  h3 {[%clk 0:00:12]} 53. Kf3 {[%clk 0:00:04]}  g5 {[%clk 0:00:11]} 54. b5 {[%clk 0:00:05]}  cxb5 {[%clk 0:00:11]} 55. axb5 {[%clk 0:00:05]}  g4+ {[%clk 0:00:12]} 0-1

[Event "January 9 Early 2024"]
[Site "https://www.chess.com"]
[Date "2024.01.11"]
[Round "5"]
[White "Rakhmatullaev, Almas"]
[Black "Donchenko, Alexander"]
[Result "1-0"]
[Board "253"]
[TimeControl "180+1"]
[WhiteFideId "14205793"]
[BlackFideId "24603295"]
[WhiteElo "2839"]
[BlackElo "2929"]
[WhiteTeam "UZB"]
[BlackTeam "GER"]
[WhiteClock "0:00:05"]
[BlackClock "0:00:01"]

1. e4 {[%clk 0:02:59]}  c6 {[%clk 0:03:00]} 2. d4 {[%clk 0:02:59]}  d5 {[%clk 0:03:01]} 3. exd5 {[%clk 0:02:59]}  cxd5 {[%clk 0:03:01]} 4. c4 {[%clk 0:02:59]}  Nf6 {[%clk 0:03:02]} 5. Nc3 {[%clk 0:02:59]}  Nc6 {[%clk 0:03:02]} 6. Nf3 {[%clk 0:02:59]}  a6 {[%clk 0:03:03]} 7. c5 {[%clk 0:02:56]}  g6 {[%clk 0:03:02]} 8. Be3 {[%clk 0:02:52]}  Bg7 {[%clk 0:03:02]} 9. h3 {[%clk 0:02:47]}  O-O {[%clk 0:03:02]} 10. Bd3 {[%clk 0:02:44]}  b6 {[%clk 0:02:59]} 11. cxb6 {[%clk 0:02:31]}  Qxb6 {[%clk 0:02:59]} 12. Qd2 {[%clk 0:02:29]}  Rb8 {[%clk 0:02:55]} 13. b3 {[%clk 0:02:15]}  Nb4 {[%clk 0:02:47]} 14. Bb1 {[%clk 0:02:05]}  Bd7 {[%clk 0:02:39]} 15. O-O {[%clk 0:02:05]}  Rfc8 {[%clk 0:02:39]} 16. Rc1 {[%clk 0:02:04]}  Be8 {[%clk 0:02:31]} 17. a3 {[%clk 0:01:52]}  Nc6 {[%clk 0:02:31]} 18. b4 {[%clk 0:01:53]}  Na7 {[%clk 0:02:17]} 19. Ba2 {[%clk 0:01:47]}  e6 {[%clk 0:02:16]} 20. Ne5 {[%clk 0:01:47]}  Nb5 {[%clk 0:02:08]} 21. Na4 {[%clk 0:01:45]}  Qa7 {[%clk 0:02:06]} 22. Nc5 {[%clk 0:01:44]}  Ne4 {[%clk 0:01:56]} 23. Nxe4 {[%clk 0:01:14]}  dxe4 {[%clk 0:01:57]} 24. d5 {[%clk 0:01:14]}  Qe7 {[%clk 0:01:45]} 25. Ng4 {[%clk 0:00:51]}  exd5 {[%clk 0:01:31]} 26. Bg5 {[%clk 0:00:46]}  e3 {[%clk 0:01:09]} 27. Bxe3 {[%clk 0:00:37]}  Nc3 {[%clk 0:01:00]} 28. Re1 {[%clk 0:00:33]}  Nxa2 {[%clk 0:00:54]} 29. Rxa2 {[%clk 0:00:33]}  Bc3 {[%clk 0:00:53]} 30. Nh6+ {[%clk 0:00:31]}  Kf8 {[%clk 0:00:49]} 31. Nf5 {[%clk 0:00:30]}  Qf6 {[%clk 0:00:19]} 32. Bh6+ {[%clk 0:00:17]}  Kg8 {[%clk 0:00:19]} 33. Ne7+ {[%clk 0:00:17]}  Kh8 {[%clk 0:00:20]} 34. Qg5 {[%clk 0:00:12]}  Qxg5 {[%clk 0:00:13]} 35. Bxg5 {[%clk 0:00:13]}  Rc4 {[%clk 0:00:10]} 36. Re3 {[%clk 0:00:10]}  Kg7 {[%clk 0:00:10]} 37. Nxd5 {[%clk 0:00:08]}  Bd4 {[%clk 0:00:08]} 38. Re4 {[%clk 0:00:07]}  Bc6 {[%clk 0:00:08]} 39. Rxd4 {[%clk 0:00:07]}  Rxd4 {[%clk 0:00:07]} 40. Bf6+ {[%clk 0:00:08]}  Kf8 {[%clk 0:00:08]} 41. Bxd4 {[%clk 0:00:07]}  Bxd5 {[%clk 0:00:08]} 42. Rd2 {[%clk 0:00:08]}  Bc4 {[%clk 0:00:07]} 43. Bc5+ {[%clk 0:00:09]}  Kg7 {[%clk 0:00:07]} 44. Rd4 {[%clk 0:00:09]}  Be6 {[%clk 0:00:06]} 45. Rd6 {[%clk 0:00:09]}  Ra8 {[%clk 0:00:04]} 46. Bd4+ {[%clk 0:00:09]}  Kf8 {[%clk 0:00:04]} 47. Bf6 {[%clk 0:00:09]}  Ke8 {[%clk 0:00:04]} 48. f4 {[%clk 0:00:10]}  Bd7 {[%clk 0:00:04]} 49. g4 {[%clk 0:00:10]}  a5 {[%clk 0:00:04]} 50. Bc3 {[%clk 0:00:06]}  axb4 {[%clk 0:00:04]} 51. Bxb4 {[%clk 0:00:07]}  h5 {[%clk 0:00:03]} 52. gxh5 {[%clk 0:00:07]}  gxh5 {[%clk 0:00:04]} 53. Rh6 {[%clk 0:00:05]}  Rc8 {[%clk 0:00:01]} 54. Rh8# {[%clk 0:00:05]} 1-0